[Event "Early-Titled-Tuesday-Blitz-November-28-2023"]
[Site "Chess.com"]
[Date "2023.11.28"]
[Round "2"]
[White "Aisen1011"]
[Black "akanga001"]
[Result "1-0"]
[WhiteElo "2429"]
[BlackElo "2012"]
[TimeControl "180+1"]
[EndTime "8:12:34 PST"]
[Termination "Aisen1011 won by resignation"]

1. d4 {[%clk 0:02:59.6]} 1... d5 {[%clk 0:02:59.1]} 2. c4 {[%clk 0:02:59.7]}
2... e6 {[%clk 0:02:58.8]} 3. Nf3 {[%clk 0:02:59.8]} 3... Nf6 {[%clk 0:02:58.6]}
4. g3 {[%clk 0:03:00.1]} 4... Be7 {[%clk 0:02:53.7]} 5. Bg2 {[%clk 0:03:00]}
5... O-O {[%clk 0:02:54.3]} 6. O-O {[%clk 0:03:00.5]} 6... dxc4 {[%clk
0:02:52.5]} 7. Ne5 {[%clk 0:03:00.1]} 7... c5 {[%clk 0:02:48]} 8. dxc5 {[%clk
0:02:59.9]} 8... Bxc5 {[%clk 0:02:46]} 9. Nxc4 {[%clk 0:03:00]} 9... Nc6 {[%clk
0:02:45.3]} 10. Nc3 {[%clk 0:02:59.8]} 10... a6 {[%clk 0:02:44.1]} 11. Bf4
{[%clk 0:02:59.6]} 11... Qe7 {[%clk 0:02:40.8]} 12. Bd6 {[%clk 0:02:53.6]} 12...
Bxd6 {[%clk 0:02:40.2]} 13. Qxd6 {[%clk 0:02:54.5]} 13... Rd8 {[%clk 0:02:34.5]}
14. Qxe7 {[%clk 0:02:54.3]} 14... Nxe7 {[%clk 0:02:33.9]} 15. Rfd1 {[%clk
0:02:54.3]} 15... Ned5 {[%clk 0:02:28]} 16. Nb6 {[%clk 0:02:50.2]} 16... Rb8
{[%clk 0:02:23]} 17. e4 {[%clk 0:02:50.2]} 1-0

[Event "Early-Titled-Tuesday-Blitz-November-28-2023"]
[Site "Chess.com"]
[Date "2023.11.28"]
[Round "2"]
[White "Kostya0705"]
[Black "JSPrepz"]
[Result "0-1"]
[WhiteElo "2545"]
[BlackElo "2836"]
[TimeControl "180+1"]
[EndTime "8:13:06 PST"]
[Termination "JSPrepz won by resignation"]

1. e4 {[%clk 0:02:56.5]} 1... e5 {[%clk 0:02:59.1]} 2. Nf3 {[%clk 0:02:56.7]}
2... Nc6 {[%clk 0:02:59.7]} 3. Bc4 {[%clk 0:02:56.9]} 3... Nf6 {[%clk 0:03:00]}
4. d4 {[%clk 0:02:56.9]} 4... exd4 {[%clk 0:03:00]} 5. e5 {[%clk 0:02:57.8]}
5... d5 {[%clk 0:02:59.9]} 6. Bb5 {[%clk 0:02:57.9]} 6... Ne4 {[%clk 0:03:00.3]}
7. Nxd4 {[%clk 0:02:58.5]} 7... Bc5 {[%clk 0:03:00.6]} 8. O-O {[%clk 0:02:57.7]}
8... O-O {[%clk 0:02:57.6]} 9. Bxc6 {[%clk 0:02:58]} 9... bxc6 {[%clk
0:02:56.3]} 10. Be3 {[%clk 0:02:58.6]} 10... Qe8 {[%clk 0:02:39.3]} 11. f3
{[%clk 0:02:53.9]} 11... Nd6 {[%clk 0:02:39.7]} 12. f4 {[%clk 0:02:52.4]} 12...
Nc4 {[%clk 0:02:38.7]} 13. Bc1 {[%clk 0:02:39]} 13... f6 {[%clk 0:02:38.9]} 14.
Re1 {[%clk 0:02:22.3]} 14... fxe5 {[%clk 0:02:37.5]} 15. fxe5 {[%clk 0:02:21.7]}
15... Nxe5 {[%clk 0:02:32]} 16. Be3 {[%clk 0:01:56.2]} 16... Nc4 {[%clk
0:02:32.1]} 17. Bc1 {[%clk 0:01:48]} 17... Bxd4+ {[%clk 0:02:30.8]} 0-1

[Event "Early-Titled-Tuesday-Blitz-November-28-2023"]
[Site "Chess.com"]
[Date "2023.11.28"]
[Round "2"]
[White "juniortay"]
[Black "DarZay"]
[Result "1-0"]
[WhiteElo "2498"]
[BlackElo "2229"]
[TimeControl "180+1"]
[EndTime "8:13:09 PST"]
[Termination "juniortay won by resignation"]

1. e4 {[%clk 0:03:00.9]} 1... c5 {[%clk 0:02:58.4]} 2. Nf3 {[%clk 0:03:01.1]}
2... Nc6 {[%clk 0:02:58.5]} 3. b4 {[%clk 0:03:01]} 3... Nxb4 {[%clk 0:02:55.8]}
4. c3 {[%clk 0:03:01.1]} 4... Nc6 {[%clk 0:02:55.7]} 5. d4 {[%clk 0:03:02]} 5...
cxd4 {[%clk 0:02:55.5]} 6. cxd4 {[%clk 0:03:02.9]} 6... d5 {[%clk 0:02:47.4]} 7.
exd5 {[%clk 0:03:03.8]} 7... Qxd5 {[%clk 0:02:41.8]} 8. Nc3 {[%clk 0:03:04.4]}
8... Qa5 {[%clk 0:02:41.2]} 9. d5 {[%clk 0:03:05]} 9... Qxc3+ {[%clk 0:02:39.8]}
10. Bd2 {[%clk 0:03:05.3]} 10... Qa3 {[%clk 0:02:30.4]} 11. dxc6 {[%clk
0:03:06.2]} 11... bxc6 {[%clk 0:02:30.3]} 12. Be2 {[%clk 0:03:04.9]} 12... e6
{[%clk 0:02:27.6]} 13. O-O {[%clk 0:03:05]} 13... Nf6 {[%clk 0:02:25.9]} 14. Ne5
{[%clk 0:03:03.1]} 14... Bd7 {[%clk 0:02:19.1]} 15. Rb1 {[%clk 0:02:54.6]} 15...
Bd6 {[%clk 0:02:15.6]} 16. Nc4 {[%clk 0:02:54.6]} 16... Qc5 {[%clk 0:02:14]} 17.
Be3 {[%clk 0:02:54.9]} 17... Qd5 {[%clk 0:02:07.4]} 18. Nxd6+ {[%clk 0:02:54.1]}
18... Ke7 {[%clk 0:02:04.4]} 19. Nc4 {[%clk 0:02:46.8]} 19... Rab8 {[%clk
0:01:49]} 20. Qc2 {[%clk 0:02:46.2]} 20... h5 {[%clk 0:01:42.8]} 21. Bf3 {[%clk
0:02:46.1]} 1-0

[Event "Early-Titled-Tuesday-Blitz-November-28-2023"]
[Site "Chess.com"]
[Date "2023.11.28"]
[Round "2"]
[White "seasidesunset"]
[Black "Jamal-Jamal-Jamal"]
[Result "0-1"]
[WhiteElo "2209"]
[BlackElo "2484"]
[TimeControl "180+1"]
[EndTime "8:13:19 PST"]
[Termination "Jamal-Jamal-Jamal won by resignation"]

1. e4 {[%clk 0:02:55.2]} 1... e6 {[%clk 0:03:00.2]} 2. Qe2 {[%clk 0:02:54.8]}
2... c5 {[%clk 0:02:58.1]} 3. Nf3 {[%clk 0:02:54]} 3... Nc6 {[%clk 0:02:57.7]}
4. g3 {[%clk 0:02:49.7]} 4... Be7 {[%clk 0:02:42.8]} 5. Bg2 {[%clk 0:02:48.3]}
5... d5 {[%clk 0:02:43]} 6. d3 {[%clk 0:02:40.4]} 6... Nf6 {[%clk 0:02:41.3]} 7.
c3 {[%clk 0:02:40.3]} 7... O-O {[%clk 0:02:40.9]} 8. O-O {[%clk 0:02:40.4]} 8...
b5 {[%clk 0:02:40.8]} 9. Rd1 {[%clk 0:02:19.9]} 9... a5 {[%clk 0:02:32.6]} 10.
h4 {[%clk 0:02:11.6]} 10... Ba6 {[%clk 0:02:31.1]} 11. Nbd2 {[%clk 0:02:05.8]}
11... b4 {[%clk 0:02:22.5]} 12. Nf1 {[%clk 0:01:56.9]} 12... dxe4 {[%clk
0:02:10.6]} 13. c4 {[%clk 0:01:46.7]} 13... exf3 {[%clk 0:02:08.7]} 0-1

[Event "Early-Titled-Tuesday-Blitz-November-28-2023"]
[Site "Chess.com"]
[Date "2023.11.28"]
[Round "2"]
[White "AvitalBor"]
[Black "tomesao"]
[Result "1-0"]
[WhiteElo "2841"]
[BlackElo "2490"]
[TimeControl "180+1"]
[EndTime "8:13:58 PST"]
[Termination "AvitalBor won by resignation"]

1. d4 {[%clk 0:03:00.9]} 1... Nf6 {[%clk 0:02:59.8]} 2. c4 {[%clk 0:03:01.8]}
2... e6 {[%clk 0:02:59.9]} 3. Nc3 {[%clk 0:03:01.9]} 3... Bb4 {[%clk 0:02:59.7]}
4. Qc2 {[%clk 0:03:02.1]} 4... O-O {[%clk 0:02:58.6]} 5. a3 {[%clk 0:03:01.5]}
5... Bxc3+ {[%clk 0:02:58.5]} 6. Qxc3 {[%clk 0:03:02.4]} 6... b6 {[%clk
0:02:58.9]} 7. Nf3 {[%clk 0:03:02.4]} 7... Bb7 {[%clk 0:02:58.7]} 8. e3 {[%clk
0:03:02.5]} 8... d5 {[%clk 0:02:58.6]} 9. b4 {[%clk 0:03:00.8]} 9... dxc4 {[%clk
0:02:47.6]} 10. Bxc4 {[%clk 0:03:00.5]} 10... Nbd7 {[%clk 0:02:47.5]} 11. O-O
{[%clk 0:02:58]} 11... Rc8 {[%clk 0:02:47.4]} 12. Rd1 {[%clk 0:02:56.3]} 12...
Qe7 {[%clk 0:02:35.4]} 13. Bb2 {[%clk 0:02:55.4]} 13... c5 {[%clk 0:02:32]} 14.
dxc5 {[%clk 0:02:56.3]} 14... bxc5 {[%clk 0:02:31.1]} 15. b5 {[%clk 0:02:56.9]}
15... Nb6 {[%clk 0:02:30.3]} 16. a4 {[%clk 0:02:53.2]} 16... Nxc4 {[%clk
0:02:28.3]} 17. Qxc4 {[%clk 0:02:54.1]} 17... Bd5 {[%clk 0:02:09.6]} 18. Qc3
{[%clk 0:02:53.3]} 18... Qb7 {[%clk 0:02:04.8]} 19. Ne5 {[%clk 0:02:37.5]} 19...
Bxg2 {[%clk 0:01:47.8]} 20. Ng4 {[%clk 0:02:22.4]} 20... Bh3 {[%clk 0:01:35.7]}
21. Nxf6+ {[%clk 0:02:21.6]} 21... gxf6 {[%clk 0:01:36.6]} 22. e4 {[%clk
0:02:21]} 1-0

[Event "Early-Titled-Tuesday-Blitz-November-28-2023"]
[Site "Chess.com"]
[Date "2023.11.28"]
[Round "2"]
[White "Doomfist26"]
[Black "twitchTriniCupid"]
[Result "1-0"]
[WhiteElo "2628"]
[BlackElo "2372"]
[TimeControl "180+1"]
[EndTime "8:14:02 PST"]
[Termination "Doomfist26 won by resignation"]

1. d4 {[%clk 0:02:55.3]} 1... Nf6 {[%clk 0:02:59.8]} 2. c4 {[%clk 0:02:55]} 2...
e6 {[%clk 0:03:00.2]} 3. Nf3 {[%clk 0:02:55.8]} 3... Bb4+ {[%clk 0:03:00.4]} 4.
Bd2 {[%clk 0:02:55.9]} 4... Be7 {[%clk 0:03:00.8]} 5. g3 {[%clk 0:02:55.8]} 5...
c5 {[%clk 0:03:00.7]} 6. dxc5 {[%clk 0:02:54.7]} 6... Na6 {[%clk 0:03:00.2]} 7.
Bg2 {[%clk 0:02:55]} 7... Nxc5 {[%clk 0:03:00]} 8. O-O {[%clk 0:02:55.7]} 8...
O-O {[%clk 0:02:59]} 9. Nc3 {[%clk 0:02:55.7]} 9... d6 {[%clk 0:02:57]} 10. Qc2
{[%clk 0:02:54.7]} 10... e5 {[%clk 0:02:57.1]} 11. Rfd1 {[%clk 0:02:54.4]} 11...
Be6 {[%clk 0:02:57.2]} 12. b3 {[%clk 0:02:54.1]} 12... h6 {[%clk 0:02:54.3]} 13.
Rac1 {[%clk 0:02:54.2]} 13... Rc8 {[%clk 0:02:54.3]} 14. Qb1 {[%clk 0:02:54]}
14... a6 {[%clk 0:02:53]} 15. Be3 {[%clk 0:02:53.7]} 15... Qa5 {[%clk
0:02:50.1]} 16. b4 {[%clk 0:02:50.9]} 16... Qc7 {[%clk 0:02:14.2]} 17. bxc5
{[%clk 0:02:44.6]} 17... Bxc4 {[%clk 0:02:12.7]} 18. cxd6 {[%clk 0:02:43.9]}
18... Bxd6 {[%clk 0:02:12.3]} 19. Nd2 {[%clk 0:02:40.6]} 19... Ba3 {[%clk
0:02:05.8]} 20. Nxc4 {[%clk 0:02:24.6]} 20... Bxc1 {[%clk 0:02:05.7]} 21. Rxc1
{[%clk 0:02:25.5]} 21... Qxc4 {[%clk 0:02:05.6]} 22. Nd5 {[%clk 0:02:18.6]}
22... Qxc1+ {[%clk 0:01:22.3]} 23. Bxc1 {[%clk 0:02:15.8]} 23... Nxd5 {[%clk
0:01:22.3]} 24. Bxd5 {[%clk 0:02:16.7]} 24... Rfd8 {[%clk 0:01:22.3]} 25. e4
{[%clk 0:02:16.4]} 1-0

[Event "Early-Titled-Tuesday-Blitz-November-28-2023"]
[Site "Chess.com"]
[Date "2023.11.28"]
[Round "2"]
[White "FMStan15"]
[Black "Casper"]
[Result "1-0"]
[WhiteElo "2060"]
[BlackElo "2415"]
[TimeControl "180+1"]
[EndTime "8:14:22 PST"]
[Termination "FMStan15 won by resignation"]

1. e4 {[%clk 0:02:52.7]} 1... c5 {[%clk 0:02:59.1]} 2. c3 {[%clk 0:02:50.1]}
2... d6 {[%clk 0:02:58.3]} 3. d4 {[%clk 0:02:50.1]} 3... cxd4 {[%clk 0:02:59.2]}
4. cxd4 {[%clk 0:02:46.2]} 4... g6 {[%clk 0:02:59.3]} 5. Bc4 {[%clk 0:02:44.8]}
5... Bg7 {[%clk 0:02:59.6]} 6. Nf3 {[%clk 0:02:43.9]} 6... Nf6 {[%clk
0:02:59.6]} 7. Qe2 {[%clk 0:02:43.1]} 7... O-O {[%clk 0:02:59.7]} 8. O-O {[%clk
0:02:40.4]} 8... Nc6 {[%clk 0:03:00.2]} 9. h3 {[%clk 0:02:39]} 9... a6 {[%clk
0:02:58.9]} 10. a4 {[%clk 0:02:38.6]} 10... Bd7 {[%clk 0:02:59.3]} 11. Nc3
{[%clk 0:02:38.8]} 11... Rc8 {[%clk 0:02:59.3]} 12. Bd3 {[%clk 0:02:36.2]} 12...
Qa5 {[%clk 0:02:58.9]} 13. e5 {[%clk 0:02:13.5]} 13... Nh5 {[%clk 0:02:44.9]}
14. g4 {[%clk 0:02:12.2]} 14... dxe5 {[%clk 0:02:44.9]} 15. gxh5 {[%clk
0:02:10.8]} 15... exd4 {[%clk 0:02:45.5]} 16. Ne4 {[%clk 0:02:06.7]} 16... Bxh3
{[%clk 0:02:41]} 17. Re1 {[%clk 0:02:02.5]} 17... Qxh5 {[%clk 0:02:40.2]} 18.
Nh2 {[%clk 0:01:50.8]} 18... Qd5 {[%clk 0:02:02.5]} 19. Qf3 {[%clk 0:01:36.9]}
19... Bf5 {[%clk 0:01:55.4]} 20. Nf6+ {[%clk 0:01:32.2]} 20... Bxf6 {[%clk
0:01:49]} 21. Qxd5 {[%clk 0:01:32.3]} 21... Bxd3 {[%clk 0:01:49.9]} 22. Qf3
{[%clk 0:01:30.8]} 22... Nb4 {[%clk 0:01:48.7]} 23. Bd2 {[%clk 0:01:24.9]} 1-0

[Event "Early-Titled-Tuesday-Blitz-November-28-2023"]
[Site "Chess.com"]
[Date "2023.11.28"]
[Round "2"]
[White "shimastream"]
[Black "FontVella8"]
[Result "1-0"]
[WhiteElo "2946"]
[BlackElo "2602"]
[TimeControl "180+1"]
[EndTime "8:14:26 PST"]
[Termination "shimastream won by resignation"]

1. e3 {[%clk 0:02:54.7]} 1... d5 {[%clk 0:02:59.7]} 2. c4 {[%clk 0:02:53.9]}
2... e6 {[%clk 0:02:59.7]} 3. Nf3 {[%clk 0:02:53.4]} 3... Nf6 {[%clk 0:03:00.1]}
4. b3 {[%clk 0:02:52.2]} 4... Bd6 {[%clk 0:02:59.7]} 5. Bb2 {[%clk 0:02:51.9]}
5... O-O {[%clk 0:03:00.4]} 6. Nc3 {[%clk 0:02:51.6]} 6... c6 {[%clk 0:03:00.6]}
7. d4 {[%clk 0:02:47]} 7... Nbd7 {[%clk 0:02:57]} 8. Bd3 {[%clk 0:02:43.9]} 8...
Qe7 {[%clk 0:02:56.6]} 9. O-O {[%clk 0:02:35]} 9... dxc4 {[%clk 0:02:52.7]} 10.
bxc4 {[%clk 0:02:32.9]} 10... e5 {[%clk 0:02:53.1]} 11. Qc2 {[%clk 0:02:30.3]}
11... Re8 {[%clk 0:02:47.3]} 12. Nd2 {[%clk 0:02:13.2]} 12... Nf8 {[%clk
0:02:25.2]} 13. Nce4 {[%clk 0:01:51.8]} 13... Nxe4 {[%clk 0:02:22.6]} 14. Nxe4
{[%clk 0:01:52.7]} 14... Bc7 {[%clk 0:02:22.9]} 15. Ng3 {[%clk 0:01:51.7]} 15...
Qg5 {[%clk 0:02:11.2]} 16. Rae1 {[%clk 0:01:48.7]} 16... Bd7 {[%clk 0:02:04.1]}
17. dxe5 {[%clk 0:01:47.4]} 17... Bxe5 {[%clk 0:02:02.8]} 18. f4 {[%clk
0:01:47.2]} 18... Bxf4 {[%clk 0:01:48]} 19. exf4 {[%clk 0:01:44.5]} 19... Qc5+
{[%clk 0:01:47.5]} 20. Qf2 {[%clk 0:01:42]} 20... Qd6 {[%clk 0:01:42.9]} 21. Rd1
{[%clk 0:01:35.1]} 21... Qh6 {[%clk 0:01:40.3]} 22. Bf5 {[%clk 0:01:32.3]} 1-0

[Event "Early-Titled-Tuesday-Blitz-November-28-2023"]
[Site "Chess.com"]
[Date "2023.11.28"]
[Round "2"]
[White "vedantgoswami"]
[Black "RodokininEV"]
[Result "0-1"]
[WhiteElo "2310"]
[BlackElo "2603"]
[TimeControl "180+1"]
[EndTime "8:14:41 PST"]
[Termination "RodokininEV won by resignation"]

1. Nc3 {[%clk 0:03:00.9]} 1... Nf6 {[%clk 0:02:58.4]} 2. e4 {[%clk 0:03:00]}
2... d5 {[%clk 0:02:59.3]} 3. e5 {[%clk 0:02:54.5]} 3... d4 {[%clk 0:02:59.3]}
4. exf6 {[%clk 0:02:53.4]} 4... dxc3 {[%clk 0:02:59.8]} 5. fxg7 {[%clk
0:02:51.3]} 5... cxd2+ {[%clk 0:03:00.2]} 6. Qxd2 {[%clk 0:02:51.3]} 6... Qxd2+
{[%clk 0:02:58.3]} 7. Bxd2 {[%clk 0:02:51.3]} 7... Bxg7 {[%clk 0:02:59.2]} 8.
O-O-O {[%clk 0:02:51.3]} 8... O-O {[%clk 0:02:57.8]} 9. Ne2 {[%clk 0:02:44.5]}
9... e5 {[%clk 0:02:57.3]} 10. Bc3 {[%clk 0:02:41.1]} 10... Nc6 {[%clk
0:02:55.4]} 11. f4 {[%clk 0:02:40.1]} 11... Bg4 {[%clk 0:02:46.7]} 12. fxe5
{[%clk 0:02:37.3]} 12... Rfe8 {[%clk 0:02:46.6]} 13. h3 {[%clk 0:02:36.7]} 13...
Bh5 {[%clk 0:02:39.9]} 14. g4 {[%clk 0:02:35.5]} 14... Bg6 {[%clk 0:02:39.9]}
15. Nf4 {[%clk 0:02:34.1]} 15... Bh6 {[%clk 0:02:36.5]} 16. Bd2 {[%clk
0:02:30.6]} 16... Nxe5 {[%clk 0:02:34.3]} 17. Nxg6 {[%clk 0:02:30.1]} 17...
Bxd2+ {[%clk 0:02:33.9]} 18. Rxd2 {[%clk 0:02:29.5]} 18... hxg6 {[%clk
0:02:34.5]} 19. Bg2 {[%clk 0:02:29.1]} 19... c6 {[%clk 0:02:31.7]} 20. b3 {[%clk
0:02:26.7]} 20... Rad8 {[%clk 0:02:30.8]} 21. Rhd1 {[%clk 0:02:24.3]} 21... Rxd2
{[%clk 0:02:29.5]} 22. Rxd2 {[%clk 0:02:24.4]} 22... Kg7 {[%clk 0:02:29.3]} 23.
Kd1 {[%clk 0:02:14.5]} 23... g5 {[%clk 0:02:29.5]} 24. Re2 {[%clk 0:02:09.7]}
24... Kf6 {[%clk 0:02:26.8]} 25. b4 {[%clk 0:02:06]} 25... Re7 {[%clk 0:02:27]}
26. c3 {[%clk 0:02:03]} 26... Ng6 {[%clk 0:02:24.2]} 27. Rxe7 {[%clk 0:02:01.3]}
27... Kxe7 {[%clk 0:02:25.1]} 28. Kd2 {[%clk 0:01:58]} 28... Kd6 {[%clk
0:02:25.5]} 29. Ke3 {[%clk 0:01:57.1]} 29... Ke5 {[%clk 0:02:26]} 30. a4 {[%clk
0:01:51.5]} 30... Nf4 {[%clk 0:02:23.3]} 31. Bf1 {[%clk 0:01:51.3]} 31... Nd5+
{[%clk 0:02:21.3]} 32. Kd3 {[%clk 0:01:48.2]} 32... b5 {[%clk 0:02:18.6]} 33. a5
{[%clk 0:01:16.8]} 33... a6 {[%clk 0:02:14.9]} 34. Kc2 {[%clk 0:01:09.1]} 34...
Ne3+ {[%clk 0:02:12.9]} 0-1

[Event "Early-Titled-Tuesday-Blitz-November-28-2023"]
[Site "Chess.com"]
[Date "2023.11.28"]
[Round "2"]
[White "margarita_2703"]
[Black "abykhovsky"]
[Result "1/2-1/2"]
[WhiteElo "2320"]
[BlackElo "2652"]
[TimeControl "180+1"]
[EndTime "8:14:42 PST"]
[Termination "Game drawn by repetition"]

1. e4 {[%clk 0:03:00.9]} 1... e6 {[%clk 0:02:56.8]} 2. d4 {[%clk 0:03:00.7]}
2... d5 {[%clk 0:02:57.7]} 3. e5 {[%clk 0:03:01]} 3... c5 {[%clk 0:02:57.9]} 4.
c3 {[%clk 0:03:01.6]} 4... Bd7 {[%clk 0:02:58.5]} 5. Nf3 {[%clk 0:03:02]} 5...
Qb6 {[%clk 0:02:59.2]} 6. Bd3 {[%clk 0:03:02.2]} 6... Bb5 {[%clk 0:02:59.5]} 7.
dxc5 {[%clk 0:03:02.6]} 7... Bxc5 {[%clk 0:03:00.1]} 8. b4 {[%clk 0:03:02.6]}
8... Be7 {[%clk 0:02:58.8]} 9. Be3 {[%clk 0:02:57.3]} 9... Qa6 {[%clk
0:02:57.8]} 10. Bc2 {[%clk 0:02:57.2]} 10... Bc4 {[%clk 0:02:48.5]} 11. a4
{[%clk 0:02:57]} 11... Qc6 {[%clk 0:02:48.5]} 12. Bd4 {[%clk 0:02:48.4]} 12...
Nd7 {[%clk 0:02:46.4]} 13. Nbd2 {[%clk 0:02:47.8]} 13... Nh6 {[%clk 0:02:45.2]}
14. Nxc4 {[%clk 0:02:47.3]} 14... Qxc4 {[%clk 0:02:46.1]} 15. Bd3 {[%clk
0:02:45.9]} 15... Qc7 {[%clk 0:02:45.3]} 16. O-O {[%clk 0:02:43.9]} 16... O-O
{[%clk 0:02:40.4]} 17. Qd2 {[%clk 0:02:30]} 17... Nb6 {[%clk 0:02:20.4]} 18. a5
{[%clk 0:02:26.4]} 18... Nc4 {[%clk 0:02:19.9]} 19. Qe2 {[%clk 0:02:24.4]} 19...
a6 {[%clk 0:02:18.8]} 20. Bxc4 {[%clk 0:02:20.6]} 20... Qxc4 {[%clk 0:02:17.6]}
21. Qxc4 {[%clk 0:02:20.4]} 21... dxc4 {[%clk 0:02:18.5]} 22. Rad1 {[%clk
0:02:19.4]} 22... f6 {[%clk 0:01:44.3]} 23. Rfe1 {[%clk 0:02:16.8]} 23... Rad8
{[%clk 0:01:11.5]} 24. h3 {[%clk 0:02:04.3]} 24... Kf7 {[%clk 0:01:09.3]} 25.
Bb6 {[%clk 0:02:02.7]} 25... Rxd1 {[%clk 0:01:08.2]} 26. Rxd1 {[%clk 0:02:03.6]}
26... Ke8 {[%clk 0:01:08.1]} 27. Nd4 {[%clk 0:01:59.9]} 27... Kf7 {[%clk
0:01:08.3]} 28. Nf3 {[%clk 0:01:56.6]} 28... Ke8 {[%clk 0:01:07.8]} 29. Nd4
{[%clk 0:01:56.4]} 29... Kf7 {[%clk 0:01:08.1]} 30. Nf3 {[%clk 0:01:56.4]}
1/2-1/2

[Event "Early-Titled-Tuesday-Blitz-November-28-2023"]
[Site "Chess.com"]
[Date "2023.11.28"]
[Round "2"]
[White "LileKoridze"]
[Black "djokovic74"]
[Result "0-1"]
[WhiteElo "2368"]
[BlackElo "2703"]
[TimeControl "180+1"]
[EndTime "8:14:52 PST"]
[Termination "djokovic74 won by resignation"]

1. d4 {[%clk 0:03:00.9]} 1... e6 {[%clk 0:02:58.8]} 2. c4 {[%clk 0:03:00.6]}
2... Nf6 {[%clk 0:02:58.4]} 3. Nf3 {[%clk 0:02:54.7]} 3... Bb4+ {[%clk
0:02:57.4]} 4. Bd2 {[%clk 0:02:54.8]} 4... Qe7 {[%clk 0:02:56.8]} 5. a3 {[%clk
0:02:52.1]} 5... Bxd2+ {[%clk 0:02:56.3]} 6. Qxd2 {[%clk 0:02:53]} 6... b6
{[%clk 0:02:56]} 7. Nc3 {[%clk 0:02:51.5]} 7... Bb7 {[%clk 0:02:56.5]} 8. d5
{[%clk 0:02:51.9]} 8... d6 {[%clk 0:02:53.6]} 9. g3 {[%clk 0:02:49.4]} 9... O-O
{[%clk 0:02:51.4]} 10. Bg2 {[%clk 0:02:49.6]} 10... a5 {[%clk 0:02:48.5]} 11.
O-O {[%clk 0:02:49.5]} 11... a4 {[%clk 0:02:32.9]} 12. e4 {[%clk 0:02:36.6]}
12... Nbd7 {[%clk 0:02:17.7]} 13. Rfe1 {[%clk 0:02:33.9]} 13... e5 {[%clk
0:02:17.1]} 14. Nh4 {[%clk 0:02:32.4]} 14... Nc5 {[%clk 0:02:17]} 15. Rad1
{[%clk 0:02:31.9]} 15... Bc8 {[%clk 0:02:05.3]} 16. Nf5 {[%clk 0:02:20.2]} 16...
Bxf5 {[%clk 0:02:04.2]} 17. exf5 {[%clk 0:02:21.1]} 17... Qd7 {[%clk 0:01:58.5]}
18. Qc2 {[%clk 0:02:20.6]} 18... Nb3 {[%clk 0:01:55.9]} 19. h3 {[%clk
0:02:03.5]} 19... Nd4 {[%clk 0:01:53.7]} 20. Qd3 {[%clk 0:02:03.3]} 20... Nxf5
{[%clk 0:01:43.6]} 21. Be4 {[%clk 0:02:01.7]} 21... Nxe4 {[%clk 0:01:36.1]} 22.
Nxe4 {[%clk 0:02:01.2]} 22... Nd4 {[%clk 0:01:36.2]} 23. Kh2 {[%clk 0:01:59.2]}
23... f5 {[%clk 0:01:34]} 24. Nc3 {[%clk 0:01:57.3]} 24... f4 {[%clk 0:01:32.3]}
25. gxf4 {[%clk 0:01:57.1]} 25... Rxf4 {[%clk 0:01:31.1]} 26. Ne4 {[%clk
0:01:57.2]} 26... Rf3 {[%clk 0:01:15.7]} 27. Qd2 {[%clk 0:01:53.2]} 27... Qxh3+
{[%clk 0:01:06.2]} 0-1

[Event "Early-Titled-Tuesday-Blitz-November-28-2023"]
[Site "Chess.com"]
[Date "2023.11.28"]
[Round "2"]
[White "50Tugrik"]
[Black "The_Machine04"]
[Result "0-1"]
[WhiteElo "2374"]
[BlackElo "2642"]
[TimeControl "180+1"]
[EndTime "8:15:22 PST"]
[Termination "The_Machine04 won by resignation"]

1. d4 {[%clk 0:03:00.9]} 1... d6 {[%clk 0:02:56.3]} 2. c4 {[%clk 0:03:00]} 2...
e5 {[%clk 0:02:54.5]} 3. Nc3 {[%clk 0:02:59.6]} 3... exd4 {[%clk 0:02:54.2]} 4.
Qxd4 {[%clk 0:03:00.5]} 4... Nc6 {[%clk 0:02:54.5]} 5. Qd1 {[%clk 0:02:59.6]}
5... g6 {[%clk 0:02:54.3]} 6. Nf3 {[%clk 0:03:00]} 6... Bg7 {[%clk 0:02:54.3]}
7. h4 {[%clk 0:03:00.1]} 7... Nf6 {[%clk 0:02:54.2]} 8. e3 {[%clk 0:02:58.5]}
8... O-O {[%clk 0:02:50.2]} 9. Be2 {[%clk 0:02:58.7]} 9... Re8 {[%clk
0:02:50.2]} 10. O-O {[%clk 0:02:58.7]} 10... Bf5 {[%clk 0:02:49.2]} 11. a3
{[%clk 0:02:57.7]} 11... Ne4 {[%clk 0:02:49]} 12. Nd5 {[%clk 0:02:54.3]} 12...
Ne7 {[%clk 0:02:47.8]} 13. Nf4 {[%clk 0:02:53.5]} 13... h5 {[%clk 0:02:41.9]}
14. Bd3 {[%clk 0:02:39.2]} 14... Nc6 {[%clk 0:02:39]} 15. Ra2 {[%clk 0:02:25.6]}
15... Ne5 {[%clk 0:02:33.4]} 16. Bxe4 {[%clk 0:02:22.5]} 16... Bxe4 {[%clk
0:02:33.3]} 17. Nxe5 {[%clk 0:02:09.6]} 17... dxe5 {[%clk 0:02:29.4]} 18. Ne2
{[%clk 0:01:56.6]} 18... Qxh4 {[%clk 0:02:24]} 19. Ng3 {[%clk 0:01:52]} 19...
Bc6 {[%clk 0:02:20.4]} 20. b3 {[%clk 0:01:50.6]} 20... Rad8 {[%clk 0:02:19.7]}
21. Rd2 {[%clk 0:01:49.2]} 21... Rxd2 {[%clk 0:02:19.2]} 22. Qxd2 {[%clk
0:01:50.1]} 22... Rd8 {[%clk 0:02:19.6]} 23. Qe2 {[%clk 0:01:50.6]} 23... Qg4
{[%clk 0:02:10]} 24. Re1 {[%clk 0:01:04.7]} 24... Qxe2 {[%clk 0:01:51.5]} 25.
Nxe2 {[%clk 0:01:03.7]} 25... Be4 {[%clk 0:01:50.4]} 26. b4 {[%clk 0:01:04.6]}
26... Bd3 {[%clk 0:01:45.8]} 27. Rd1 {[%clk 0:00:58.2]} 27... Bf6 {[%clk
0:01:41.7]} 0-1